[Event "FRA-ch Teams Top 16-B 2022"]
[Site "Chartres"]
[Date "2022.06.09"]
[Round "1.8"]
[White "Rollot, Florence"]
[Black "Navrotescu, Andreea"]
[Result "0-1"]
[ECO "A13"]
[WhiteElo "2017"]
[BlackElo "2318"]
[Annotator "TA"]
[PlyCount "114"]
[EventDate "2022.06.09"]
[EventType "team-tourn"]
[EventCountry "FRA"]
[SourceTitle "playchess.com"]
[Source "ChessBase"]
[SourceQuality "1"]
[TimeControl "40/5400+30:1800+30"]

{[%evp 18,113,1,-10,-20,-8,0,-9,-4,-27,0,-12,0,-68,0,-20,29,33,46,43,86,87,119,5,44,0,20,37,41,0,15,-62,0,0,0,-168,-168,-162,-169,-175,-135,-122,-97,-144,-136,-129,0,-177,-201,-260,-59,-300,-197,-185,-161,-329,-111,-258,-128,-254,-215,-305,-254,-322,-292,-295,-295,-280,-247,-322,-275,-362,-321,-390,-386,-429,-337,-405,-351,-480,-493,-457,-419,-695,-681,-681,-677,-660,-620,-29983,-29984,-29987,-29988,-29985,-29986,-29996,-29997,-29999]} 1. Nf3 {[%emt 0:00:03]} d5 {[%emt 0:00:28]} 2. c4 {[%emt 0:00:07]} c6 {[%emt 0:00:40]} 3. b3 {[%emt 0:00:06]} Nf6 {[%emt 0:02:41]} 4. Bb2 {[%emt 0:00:14]} e6 {[%emt 0:00:43]} 5. g3 {[%emt 0:00:24]} Bd6 {[%emt 0:01:03]} 6. Bg2 {[%emt 0:00:20]} Nbd7 {[%emt 0:03:05]} 7. O-O {[%emt 0:00:34]} e5 {[%emt 0:01:55]} 8. d3 {[%emt 0:01:54]} O-O {[%emt 0:01:26]} 9. cxd5 {[%emt 0:08:06]} cxd5 {[%emt 0:00:22]} 10. Nc3 {[%emt 0:00:52][%cal Bb1c3,Bc3a4,Ba4b6][%mdl 32]} a6 {[%emt 0:01:50] [#] A13: English Opening: 1...e6.} 11. Qc2 $146 {[%emt 0:07:56]} ({Predecessor:} 11. e3 b5 12. Nh4 Nb6 13. e4 g5 14. Nf5 Bxf5 15. exf5 b4 16. Ne2 Qd7 17. f4 Ng4 18. fxe5 Nxe5 {1-0 (38) Rogac,S (2400)-Damia,A (2242) Novi Sad 2016}) 11... Nb8 {[%emt 0:10:34]} 12. a3 {[%emt 0:12:50]} Nc6 {[%emt 0:01:01] The position is equal.} 13. Rac1 {[%emt 0:03:17]} Bg4 {[%emt 0:01:07]} 14. Na4 {[%emt 0:13:07]} Rc8 {[%emt 0:02:41]} 15. Qd1 {[%emt 0:02:07]} (15. Qd2 $11) 15... Qe7 {[%emt 0:03:03]} (15... b5 $1 $15 16. Nc5 Qe7) 16. b4 {[%emt 0:05:10][%cal Bb3b4,Bb4b5][%mdl 32]} a5 {[%emt 0:10:07]} (16... Nd7 $142) 17. Nb6 $11 {[%emt 0:03:38]} Rcd8 {[%emt 0:02:04]} 18. b5 {[%emt 0:00:38]} Nd4 {[%emt 0:00:38]} 19. Nxd4 {[%emt 0:04:46]} exd4 {[%emt 0:00:11]} 20. f3 {[%emt 0:00:34]} ({Much weaker is} 20. Bxd4 $6 Bxe2 21. Bxf6 gxf6 22. Nxd5 Qe6 $11) (20. Nxd5 Nxd5 21. Bxd5 Bxe2 $17) (20. Qa4 $16) 20... Be6 {[%emt 0:26:07]} (20... Bd7 $5) 21. Qb3 {[%emt 0:08:24]} Bc5 {[%emt 0:04:04]} 22. Na4 {[%emt 0:03:27]} b6 {[%emt 0:04:27][%cal Bb7b6,Bb6c5,Bc5c4][%mdl 32]} 23. Rc2 {[%emt 0:03:11]} h5 {[%emt 0:04:28][%cal Oh5h4]} 24. h4 {[%emt 0:04:24]} (24. Nxc5 $11 bxc5 25. a4) 24... Nd7 {[%emt 0:02:00]} ({Better is} 24... Rc8 $15) 25. Bc1 {[%emt 0:04:43]} Bd6 {[%emt 0:00:20]} 26. Kf2 {[%emt 0:02:51] [#]} (26. f4 $11) 26... Nc5 $1 $36 {[%emt 0:01:43][%mdl 2048] Black is on the roll.} 27. Nxc5 {[%emt 0:00:34]} bxc5 {[%emt 0:00:02]} 28. Qa4 {[%emt 0:03:04]} Qc7 {[%emt 0:00:39]} 29. f4 {[%emt 0:00:26]} c4 {[%emt 0:02:08]} 30. Bf3 {[%emt 0:00:43]} (30. dxc4 $142 dxc4 31. Bc6) 30... Qb6 $17 {[%emt 0:04:13]} 31. Kg2 {[%emt 0:02:50][%cal Rd3c4]} g6 {[%emt 0:04:26] Black is more active.} (31... Rc8 $17 {And now ...g6 would win.} 32. Bd2 c3) 32. Rd1 $2 {[%emt 0:01:48]} (32. dxc4 $11 {and White has nothing to worry.} dxc4 33. Rxc4 Bxc4 34. Qxc4) 32... Rc8 $19 {[%emt 0:00:38]} 33. Bb2 {[%emt 0:01:21]} Bc5 $2 {[%emt 0:01:41]} (33... c3 $19 34. Ba1 Bd7) 34. Rdc1 $2 {[%emt 0:00:49]} ({White should try} 34. dxc4 $15 dxc4 35. Rxc4) 34... Rfd8 {[%emt 0:00:23]} 35. Ba1 {[%emt 0:00:39]} Rb8 {[%emt 0:00:49]} 36. Rb2 $2 {[%emt 0:00:57]} (36. dxc4 {was worth a try.} dxc4 37. f5 gxf5 38. Rxc4 Bxc4 39. Qxc4 Bxa3 40. Rb1) 36... Qd6 $2 {[%emt 0:01:27]} (36... c3 $19 {is more deadly.} 37. Ra2 Bd7) 37. Ra2 {[%emt 0:00:46]} (37. dxc4 $17 {was the only chance.} dxc4 38. Rxc4) 37... Bb6 {[%emt 0:00:21]} (37... Bd7 $19 {Strongly threatening ...Qe6.} 38. Qd1 (38. dxc4 $2 Qe6 $19) 38... Bxb5) 38. Qd1 {[%emt 0:00:55]} (38. dxc4 $17 dxc4 39. Rxc4) 38... c3 {[%emt 0:01:53]} 39. a4 {[%emt 0:00:28]} (39. e3 $142) 39... Rbc8 {[%emt 0:00:26]} 40. Qe1 {[%emt 0:00:50]} Bf5 {[%emt 0:00:59]} 41. Qd1 {[%emt 0:07:21]} Kh7 {[%emt 0:04:07]} 42. Qb3 {[%emt 0:01:17]} Qe6 {[%emt 0:01:18]} 43. Rac2 {[%emt 0:02:24]} Rc7 {[%emt 0:04:54]} 44. Qa2 {[%emt 0:02:49]} Re7 {[%emt 0:00:26] White must now prevent ...Bg4.} 45. Kh2 {[%emt 0:00:57]} Bg4 {[%emt 0:00:23]} 46. Rf1 {[%emt 0:01:13]} Bc7 {[%emt 0:00:52]} 47. Qa3 {[%emt 0:01:37]} Bd6 {[%emt 0:00:47]} 48. Qa2 {[%emt 0:00:11]} Bxf3 {[%emt 0:02:58]} 49. Rxf3 {[%emt 0:00:10]} Rde8 {[%emt 0:01:36][%cal Bd8e8,Be8e2,Be2f2][%mdl 32]} 50. Qb1 {[%emt 0:01:29] [#]} (50. e3 $142 Bc5 51. f5 gxf5 52. Rg2) 50... Qxe2+ $1 {[%emt 0:04:55][%mdl 512]} 51. Rxe2 {[%emt 0:00:39]} Rxe2+ {[%emt 0:00:03]} 52. Kh3 {[%emt 0:01:28] [#]} Re1 {[%emt 0:00:06][%mdl 64] Prevents Qh1. Skewer} 53. Qb3 {[%emt 0:04:12][%cal Of3f2]} R8e2 {[%emt 0:00:03][%cal Re1h1] Inhibits Rf2. Black mates.} 54. Rf2 {[%emt 0:01:12]} Rxf2 {[%emt 0:00:13][%cal Re1h1]} 55. Qxd5 {[%emt 0:00:07] [#]} Ree2 $1 {[%emt 0:03:36][%csl Ge2][%cal Rf2h2]} 56. Qxf7+ {[%emt 0:00:14]} (56. Qh1 Rd2) 56... Kh6 {[%emt 0:00:01][%csl Ge2][%cal Rf2h2]} 57. g4 {[%emt 0:03:04]} Re3# {[%emt 0:00:40] Weighted Error Value: White=0.71/Black=0.37} 0-1

[Event "FRA-ch Teams Top 16-B 2022"]
[Site "Chartres"]
[Date "2022.06.09"]
[Round "1.9"]
[White "Neiksans, Arturs"]
[Black "Di Nicolantonio, Lucas"]
[Result "1-0"]
[ECO "D02"]
[WhiteElo "2579"]
[BlackElo "2399"]
[Annotator "TA"]
[PlyCount "47"]
[EventDate "2022.06.09"]
[EventType "team-tourn"]
[EventCountry "FRA"]
[SourceTitle "playchess.com"]
[Source "ChessBase"]
[SourceQuality "1"]
[TimeControl "40/5400+30:1800+30"]

{[%evp 9,47,23,26,10,11,1,14,16,12,22,17,22,18,25,33,0,37,29,59,59,54,38,40,38,56,53,85,86,115,122,114,122,139,113,195,182,461,455,575,535]} 1. Nf3 {[%emt 0:00:48]} d5 {[%emt 0:00:24]} 2. g3 {[%emt 0:00:08]} g6 {[%emt 0:00:49]} 3. Bg2 {[%emt 0:00:40]} Bg7 {[%emt 0:00:08]} 4. d4 {[%emt 0:00:15]} c6 {[%emt 0:00:57]} 5. O-O {[%emt 0:00:20]} Nf6 {[%emt 0:00:20]} 6. a4 {[%emt 0:10:32] D02: 1 d4 d5 2 Nf3 sidelines, including 2...Nf6 3 g3 and 2...Nf6 3 Bf4.} O-O {[%emt 0:06:44]} 7. a5 {[%emt 0:04:43]} Na6 {[%emt 0:09:10]} 8. c3 {[%emt 0:03:24] The position is equal.} Bf5 {[%emt 0:03:24] [#]} 9. Bf4 $146 {[%emt 0:00:49]} ({Predecessor:} 9. Ne5 Nd7 10. f4 Nf6 11. Nd2 Nc7 12. a6 Nxa6 13. Nxc6 Qb6 14. Nxe7+ Kh8 15. Nxd5 Nxd5 16. Bxd5 Bxd4+ {1-0 (53) Eliseev,E (1992)-Savchenko,B (2633) Chess.com INT 2016}) 9... Qc8 {[%emt 0:03:11]} 10. Qb3 {[%emt 0:02:26]} Nh5 {[%emt 0:06:33]} 11. Be3 {[%emt 0:11:34]} Rb8 {[%emt 0:05:28]} 12. c4 {[%emt 0:03:45]} dxc4 {[%emt 0:05:13]} 13. Qxc4 {[%emt 0:00:45]} Bh3 {[%emt 0:01:45]} 14. Nc3 {[%emt 0:05:20]} Nc7 {[%emt 0:07:24]} 15. Bg5 {[%emt 0:02:47] Hoping for Bxh3.} Bxg2 {[%emt 0:10:24]} 16. Kxg2 {[%emt 0:00:15]} Qd7 {[%emt 0:00:19]} 17. e4 {[%emt 0:01:35]} Kh8 {[%emt 0:00:15]} 18. Rad1 {[%emt 0:11:39]} f5 {[%emt 0:05:32]} 19. Ne5 {[%emt 0:04:11]} Qe8 {[%emt 0:07:36]} 20. Rfe1 $36 {[%emt 0:06:13][%mdl 2048] White is in control.} f4 {[%emt 0:08:47] [#]} 21. f3 $1 {[%emt 0:01:10] 0x0.000bd5f48946dp-1022s more active pieces.} e6 {[%emt 0:05:00]} (21... fxg3 $16 22. hxg3 Rd8) 22. g4 $18 {[%emt 0:01:24]} h6 $2 {[%emt 0:04:07] [#]} (22... Nf6 23. Bxf4 Nxg4) 23. Be7 $1 {[%emt 0:02:08][%mdl 512]} Rg8 {[%emt 0:03:00]} (23... Nf6 24. Bd6) 24. Bd6 {[%emt 0:00:17] Weighted Error Value: White=0.04 (flawless) /Black=0.34} ({Not} 24. gxh5 Bxe5 25. Qc5 Bg7 $14) 1-0

[Event "FRA-ch Teams Top 16-B 2022"]
[Site "Chartres"]
[Date "2022.06.09"]
[Round "1.10"]
[White "Duboue, Peio"]
[Black "Kulaots, Kaido"]
[Result "1-0"]
[ECO "B06"]
[WhiteElo "2426"]
[BlackElo "2537"]
[Annotator "TA"]
[PlyCount "127"]
[EventDate "2022.06.09"]
[EventType "team-tourn"]
[EventCountry "FRA"]
[SourceTitle "playchess.com"]
[Source "ChessBase"]
[SourceQuality "1"]
[TimeControl "40/5400+30:1800+30"]

{[%evp 11,127,29,29,13,36,24,33,30,39,0,0,-12,80,72,100,84,81,86,89,9,9,4,7,0,-17,0,122,84,154,168,140,12,157,175,162,120,115,134,116,115,114,116,126,126,122,114,108,108,126,128,147,162,182,182,182,161,182,159,182,182,185,184,184,184,184,184,184,184,191,184,184,0,151,159,157,125,183,182,184,184,197,197,197,197,197,193,193,191,184,184,375,375,383,375,375,369,375,375,375,375,375,356,433,324,740,714,712,693,646,195,29967,29966,29974,29975,29975,29976,29974,29973]} 1. e4 {[%emt 0:00:03]} c5 {[%emt 0:00:25]} 2. c3 {[%emt 0:00:04]} d5 {[%emt 0:00:12]} 3. exd5 {[%emt 0:00:07]} Qxd5 {[%emt 0:00:05]} 4. d4 {[%emt 0:00:03]} g6 {[%emt 0:00:23]} 5. Nf3 {[%emt 0:00:30]} Bg7 {[%emt 0:00:16]} 6. Na3 {[%emt 0:00:07][%cal Bb1a3,Ba3b5,Bb5c7][%mdl 32]} cxd4 {[%emt 0:00:40]} 7. Bc4 {[%emt 0:01:29] B06: Modern Defence.} Qd8 {[%emt 0:00:26]} 8. Qb3 {[%emt 0:01:27][%mdl 1024] White has compensation.} e6 $1 {[%emt 0:00:31]} 9. Nb5 {[%emt 0:00:06] [#] White is slightly better.} Ne7 $146 {[%emt 0:07:54]} ({Predecessor:} 9... a6 10. Bg5 Ne7 11. Nbxd4 Qc7 12. O-O Nbc6 13. Rad1 Na5 14. Qa4+ Bd7 15. Qa3 Bf8 {0-1 (58) Kukawski,M (2285)-Riff,J (2493) Warsaw 2017}) 10. Bf4 {[%emt 0:05:00]} (10. cxd4 Nbc6 11. Qa3 O-O $15) 10... O-O {[%emt 0:04:54]} 11. Nc7 {[%emt 0:24:54] [#]} (11. Nfxd4 e5 12. O-O-O exd4 $17) (11. cxd4 Nbc6 $15) 11... Nbc6 $1 {[%emt 0:37:47]} 12. Nxa8 $16 {[%emt 0:00:57] aiming for Nxd4. 0x0.00086066af91dp-1022s more active pieces. The black rooks are badly placed.} e5 {[%emt 0:01:37]} 13. Bg5 {[%emt 0:32:38]} h6 {[%emt 0:06:07]} 14. Bxe7 {[%emt 0:00:04]} Qxe7 {[%emt 0:00:29]} 15. Qa3 {[%emt 0:01:59]} ({Better is} 15. O-O $16) 15... Qxa3 $11 {[%emt 0:04:56]} 16. bxa3 {[%emt 0:00:04] Hoping for cxd4.} dxc3 {[%emt 0:00:09]} 17. O-O {[%emt 0:05:45] Nc7 is the strong threat.} e4 {[%emt 0:03:28]} 18. Ne1 {[%emt 0:01:08]} Ne5 {[%emt 0:16:24]} (18... Be5 $11) 19. Be2 {[%emt 0:02:10]} ({Of course not} 19. Bd5 $6 Bf5 $11) 19... Bg4 {[%emt 0:08:19]} (19... Nc6 $142) 20. Bxg4 $16 {[%emt 0:02:39]} Nxg4 {[%emt 0:00:05]} 21. h3 {[%emt 0:00:49]} ({White must play} 21. Nc7 $16) 21... Ne5 {[%emt 0:00:27]} (21... e3 $1 $11 {remains equal.}) 22. Nc7 {[%emt 0:00:05] Black must now prevent Nc2.} Rd8 {[%emt 0:00:43]} 23. Nc2 {[%emt 0:04:52]} Rd2 {[%emt 0:00:51]} 24. Ne3 {[%emt 0:02:02]} Nd3 {[%emt 0:00:18]} 25. Ncd5 {[%emt 0:02:55] Strongly threatening Rad1.} Bd4 {[%emt 0:02:52] [#]} 26. Rac1 $1 {[%emt 0:04:01]} Nxc1 {[%emt 0:00:48]} 27. Rxc1 {[%emt 0:00:04]} Rxa2 {[%emt 0:01:24]} 28. Nxc3 {[%emt 0:00:26] Pair of Knights!} Rxa3 {[%emt 0:00:31]} 29. Nxe4 {[%emt 0:02:19]} Bxe3 {[%emt 0:00:37]} 30. fxe3 {[%emt 0:00:05]} Rxe3 {[%emt 0:00:09][%mdl 4096] Endgame KRN-KR} 31. Nd6 {[%emt 0:00:07]} Re6 {[%emt 0:01:41]} 32. Nxb7 {[%emt 0:00:35]} Re7 {[%emt 0:00:26]} 33. Na5 {[%emt 0:00:57]} Kg7 {[%emt 0:00:17]} 34. Rc8 {[%emt 0:02:07]} h5 {[%emt 0:00:38]} 35. Kh2 {[%emt 0:03:21]} h4 {[%emt 0:00:32]} 36. Nc6 {[%emt 0:00:33]} Rb7 {[%emt 0:00:32]} 37. Ra8 {[%emt 0:00:44]} Rb6 {[%emt 0:00:24]} 38. Ne5 {[%emt 0:00:05]} ({And not} 38. Nxa7 Ra6 $15) 38... Ra6 {[%emt 0:00:32]} 39. Rc8 {[%emt 0:00:53]} Ra5 {[%emt 0:00:40]} 40. Nc6 {[%emt 0:00:54]} Ra1 {[%emt 0:00:29]} 41. Ne5 {[%emt 0:02:22]} Ra5 $1 {[%emt 0:08:54]} 42. Nc4 {[%emt 0:01:35]} Ra6 {[%emt 0:04:41]} 43. Nd2 {[%emt 0:01:59]} Ra4 {[%emt 0:08:22]} (43... g5 $16 44. Rc2 Kg6) 44. Rc7 $18 {[%emt 0:00:39]} g5 {[%emt 0:02:25]} 45. Nc4 {[%emt 0:02:42]} a6 {[%emt 0:01:22]} 46. Nd6 {[%emt 0:01:16]} Rf4 {[%emt 0:00:28]} 47. Ra7 {[%emt 0:00:17]} Kg6 {[%emt 0:05:01]} 48. Rxa6 {[%emt 0:00:21]} f6 {[%emt 0:03:19]} 49. Nb5 {[%emt 0:01:42]} Rf1 {[%emt 0:00:00]} 50. Nc3 {[%emt 0:00:25] Threatens to win with Rc6.} Kg7 $2 {[%emt 0:00:00]} (50... Re1 {was necessary.} 51. Nd5 Rf1) 51. Nd5 {[%emt 0:01:10]} Kg6 {[%emt 0:00:00]} 52. Ne3 {[%emt 0:00:20]} Rf4 {[%emt 0:00:00]} 53. Kg1 {[%emt 0:01:37] And now Nd5 would win.} Kg7 {[%emt 0:00:00]} 54. Nd5 {[%emt 0:02:43]} Rf5 {[%emt 0:00:00]} 55. Ra7+ {[%emt 0:00:04]} Kf8 {[%emt 0:00:00]} 56. Ne3 {[%emt 0:01:04]} Rf4 {[%emt 0:00:00]} 57. Ng4 {[%emt 0:00:51]} Kg8 $2 {[%emt 0:02:11]} (57... Ke8 58. Nf2 Kd8) 58. Nh6+ {[%emt 0:01:05]} Kf8 {[%emt 0:00:24]} 59. Rb7 {[%emt 0:00:19]} Ke8 {[%emt 0:00:22]} 60. Rf7 {[%emt 0:01:22]} g4 $2 {[%emt 0:02:29]} (60... Rf5 $18 61. Nxf5 Kxf7) 61. hxg4 {[%emt 0:00:26] White mates.} Rxg4 {[%emt 0:00:04]} 62. Nxg4 {[%emt 0:01:44]} Kxf7 {[%emt 0:00:04]} 63. Kh2 {[%emt 0:00:03]} Kg6 {[%emt 0:00:08]} 64. Kh3 {[%emt 0:17:16] Weighted Error Value: White=0.14 (very precise) /Black=0.32} 1-0

[Event "FRA-ch Teams Top 16-B 2022"]
[Site "Chartres"]
[Date "2022.06.09"]
[Round "1.11"]
[White "Godart, Francois"]
[Black "Real, Thibault"]
[Result "1-0"]
[ECO "E04"]
[WhiteElo "2399"]
[BlackElo "2262"]
[Annotator "TA"]
[PlyCount "83"]
[EventDate "2022.06.09"]
[EventType "team-tourn"]
[EventCountry "FRA"]
[SourceTitle "playchess.com"]
[Source "ChessBase"]
[SourceQuality "1"]
[TimeControl "40/5400+30:1800+30"]

{[%evp 16,83,31,25,95,81,88,100,93,91,98,99,99,109,108,100,108,100,101,105,96,95,96,103,127,121,126,120,139,131,139,138,140,138,161,154,154,157,164,159,185,173,231,210,222,216,215,197,199,209,216,205,228,196,375,366,480,473,494,488,532,533,508,507,507,489,477,484,29998,29999]} 1. d4 {[%emt 0:00:06]} Nf6 {[%emt 0:00:10]} 2. c4 {[%emt 0:00:08]} e6 {[%emt 0:00:05]} 3. g3 {[%emt 0:00:13]} d5 {[%emt 0:00:06]} 4. Bg2 {[%emt 0:00:26]} dxc4 {[%emt 0:00:14]} 5. Nf3 {[%emt 0:00:15]} Nc6 {[%emt 0:00:06]} 6. Qa4 {[%emt 0:00:26]} Bb4+ {[%emt 0:00:19]} 7. Bd2 {[%emt 0:00:06]} Nd5 {[%emt 0:00:14][%cal Bf6d5,Bd5b4,Bb4c2][%mdl 32]} 8. Bxb4 {[%emt 0:01:10]} Ndxb4 {[%emt 0:00:19]} 9. O-O {[%emt 0:00:18]} Bd7 {[%emt 0:15:27] E04: Open Catalan: 5 Nf3.} (9... Rb8 $11 {remains equal.}) 10. a3 $16 {[%emt 0:03:31]} b5 {[%emt 0:02:03]} 11. Qxb5 {[%emt 0:00:39]} Nc2 {[%emt 0:02:33][%csl LRa1,LRd4] White is better.} 12. Ra2 {[%emt 0:00:17]} N6xd4 {[%emt 0:10:34]} 13. Qc5 $1 {[%emt 0:00:45]} Qe7 {[%emt 0:20:23]} (13... Nxe2+ $2 14. Kh1 $18) 14. Qa5 $1 {[%emt 0:01:41] And now Nxd4 would win.} Bc6 {[%emt 0:15:40]} 15. Nxd4 {[%emt 0:14:51][%mdl 64] Discovered Attack} Nxd4 {[%emt 0:00:04]} 16. Bxc6+ {[%emt 0:07:35]} Nxc6 {[%emt 0:00:02]} 17. Qa4 {[%emt 0:00:06][%csl LRc4,LRc6]} Qc5 {[%emt 0:00:37]} 18. Rc1 $1 {[%emt 0:01:29]} O-O {[%emt 0:13:16]} 19. Rxc4 {[%emt 0:01:22]} (19. Qxc4 Qxc4 20. Rxc4 Na5 $14) 19... Qa5 {[%emt 0:00:11] [#] Strongly threatening ...Qe1+.} 20. Nc3 $1 $36 {[%emt 0:00:54][%mdl 2048] Keeping Black busy.} ({Wrong is} 20. Qxc6 $2 Qe1+ 21. Kg2 Qxb1 $19) ({Much less strong is} 20. Qxa5 $6 Nxa5 21. Rc3 (21. Rxc7 Nb3 $11) 21... Rad8 $14) 20... Qxa4 {[%emt 0:00:45]} 21. Nxa4 {[%emt 0:00:52] [#]} Na5 $146 {[%emt 0:03:59] [#]} ({Predecessor:} 21... Ne5 22. Rc5 f6 23. b4 Rac8 24. Ra5 Ra8 25. Nc5 Kf7 26. Ra6 Rfe8 27. Rc2 Re7 {1-0 (63) Knol,E (2200)-Brodie,P (1794) ICCF email 2016}) 22. Rc3 {[%emt 0:02:01]} ({Resist} 22. Rxc7 $6 Nb3 $14) 22... Nb7 {[%emt 0:09:26]} 23. Rxc7 {[%emt 0:02:04]} Nd6 {[%emt 0:00:37]} 24. Ra1 {[%emt 0:02:55]} g6 {[%emt 0:02:59]} 25. Rac1 {[%emt 0:02:02]} Rfd8 {[%emt 0:01:18]} 26. f3 {[%emt 0:02:14] White is more active.} Ne8 {[%emt 0:01:01]} 27. R7c6 {[%emt 0:04:04]} Rd4 {[%emt 0:00:37]} 28. b4 {[%emt 0:07:33]} Kg7 {[%emt 0:00:26]} (28... Rad8 $142 29. Rc8 Kg7) 29. Kf2 {[%emt 0:01:58]} h5 {[%emt 0:00:51]} 30. Ke3 {[%emt 0:08:16]} Rd5 {[%emt 0:00:23]} 31. Nc3 {[%emt 0:00:47]} Rd7 {[%emt 0:00:13]} 32. Ne4 {[%emt 0:01:12]} Rb7 {[%emt 0:00:59]} 33. R1c5 {[%emt 0:01:45]} Rd8 {[%emt 0:00:19]} 34. Ra5 {[%emt 0:01:50]} Rd1 $2 {[%emt 0:00:37]} (34... Nf6 35. Rd6 Re8) 35. Rca6 $18 {[%emt 0:01:43]} Rc7 {[%emt 0:00:14]} 36. Rxa7 {[%emt 0:00:24]} Rc2 {[%emt 0:00:10]} 37. Rc5 {[%emt 0:01:34]} Rb2 {[%emt 0:00:09]} 38. Rc8 {[%emt 0:00:55]} Nf6 {[%emt 0:01:04]} 39. Nxf6 {[%emt 0:00:20]} Kxf6 {[%emt 0:00:15]} 40. Rcc7 {[%emt 0:00:19]} Re1 {[%emt 0:00:49]} 41. Rxf7+ {[%emt 0:32:20]} Kg5 {[%emt 0:05:33]} (41... Ke5 $18 42. f4+ Kd5 43. Rfd7+ Kc4 44. Rac7+ Kb5 45. Rc5+ Kb6) 42. h4+ {[%emt 0:28:04] Weighted Error Value: White=0.03 (flawless) /Black=0.40} 1-0